[Event "Asian Amateur-ch Open 2022"]
[Site "Muscat"]
[Date "2022.10.02"]
[Round "1.8"]
[White "Humaidan Mohamed, Alzaabi"]
[Black "Rafee, Mohd Hayel"]
[Result "1-0"]
[ECO "B51"]
[WhiteElo "1393"]
[BlackElo "1941"]
[Annotator "TA"]
[PlyCount "99"]
[EventDate "2022.09.29"]
[EventType "swiss"]
[SourceTitle "playchess.com"]
[Source "ChessBase"]
[SourceQuality "1"]
[TimeControl "5400+30"]

{[%evp 14,99,7,0,20,31,42,34,37,34,39,31,45,26,31,23,18,-14,-16,-35,-22,-39,-45,-47,-54,-32,-38,-46,-36,-36,-33,-93,-95,-117,-28,-25,9,0,214,221,309,295,310,271,604,0,0,0,66,0,282,53,53,44,48,0,367,334,302,335,322,259,528,547,4690,4618,3326,385,2606,1177,5062,5306,4727,4727,29980,29981,29983,29983,29989,29986,29983,29984,29984,29985,29988,29986,29986,770]} 1. e4 {[%emt 0:00:03]} c5 {[%emt 0:00:28]} 2. Nf3 {[%emt 0:00:09]} d6 {[%emt 0:00:03]} 3. Bb5+ {[%emt 0:00:13]} Nd7 {[%emt 0:00:04]} 4. O-O {[%emt 0:00:58]} a6 {[%emt 0:00:04]} 5. Bxd7+ {[%emt 0:00:06]} Bxd7 {[%emt 0:00:56]} 6. d4 {[%emt 0:00:43]} cxd4 {[%emt 0:02:04]} 7. Qxd4 {[%emt 0:00:43]} e5 {[%emt 0:00:20]} 8. Qd3 {[%emt 0:00:17]} Be7 {[%emt 0:01:00] B51: Sicilian: Moscow Variation (3 Bb5+) without 3...Bd7.} 9. c4 {[%emt 0:01:18]} Rc8 {[%emt 0:01:07]} 10. Nc3 {[%emt 0:00:31]} Nf6 {[%emt 0:01:22] White is slightly better.} 11. Bg5 {[%emt 0:00:49]} Be6 {[%emt 0:00:40] [#]} 12. Nd2 $146 {[%emt 0:15:34]} ({Predecessor:} 12. b3 Nd7 13. Bxe7 Qxe7 14. Rfd1 Rc6 15. Nd5 Bxd5 16. Qxd5 O-O 17. Nd2 Nc5 18. Nf1 {½-½ (35) Zhao,J (2583)-Xiu,D (2492) Beijing 2012}) 12... Qc7 {[%emt 0:00:23][%cal Re6c4]} 13. Bxf6 {[%emt 0:02:42]} Bxf6 {[%emt 0:00:38]} 14. Nd5 {[%emt 0:01:35]} Bxd5 {[%emt 0:00:06]} 15. exd5 {[%emt 0:00:26]} O-O {[%emt 0:00:16]} 16. Rac1 {[%emt 0:09:28]} Bg5 {[%emt 0:01:34][%cal Oe5e4]} 17. Rc3 {[%emt 0:07:40]} f5 {[%emt 0:02:29]} 18. Qe2 {[%emt 0:14:46]} e4 {[%emt 0:10:58]} 19. Nb3 {[%emt 0:08:00]} Bf6 {[%emt 0:00:50] Inhibits Nd4.} 20. Rc2 {[%emt 0:02:15]} Qe7 {[%emt 0:02:32]} 21. Re1 {[%emt 0:09:55]} Be5 {[%emt 0:02:41]} 22. Na5 {[%emt 0:06:13]} ({White should play} 22. g3 $15) 22... Rf6 $17 {[%emt 0:07:11][%cal Oe5h2] Hoping for ...Bxh2+!} (22... Qh4 $6 23. g3 Qh3 24. Qf1 $11) 23. g3 {[%emt 0:04:06]} Qc7 {[%emt 0:08:35]} (23... Qf7 $17 {...Rf8 is the strong threat.} 24. Nb3 Rf8) 24. b4 $11 {[%emt 0:01:40]} Qb6 {[%emt 0:00:10]} 25. a3 {[%emt 0:00:29]} f4 $2 {[%emt 0:00:07]} (25... Rcf8 $11 {and Black has nothing to worry.}) 26. Qxe4 $18 {[%emt 0:02:26][%cal Oc4c5] Strongly threatening c5!} fxg3 {[%emt 0:00:23]} 27. hxg3 {[%emt 0:00:05]} Bd4 {[%emt 0:18:13][%cal Rd4f2]} (27... Bxg3 $2 28. c5 dxc5 29. Nc4 $18) 28. Kg2 {[%emt 0:10:08]} Bxf2 $2 {[%emt 0:05:13]} (28... Rxf2+ $2 29. Rxf2 Be5 30. c5 $18) (28... Rcf8 29. f4 R6f7) 29. Qg4 $2 {[%emt 0:00:19]} (29. c5 $18 dxc5 30. Nc4) 29... Rcf8 $1 $11 {[%emt 0:00:45]} (29... Bxe1 $2 30. Qxc8+ Rf8 31. Qe6+ Kh8 32. Qxe1 $18) 30. Re6 {[%emt 0:00:11] Dancing on a razor blade.} R6f7 {[%emt 0:08:58]} ({Black should try} 30... Bxg3 $11 31. Kxg3 h5) 31. c5 {[%emt 0:00:41] Active counter play!} (31. Ree2 $14) 31... Qc7 $2 {[%emt 0:01:31][%mdl 8192] [#]} (31... Qb5 $11 32. Nc4 h5) 32. Rxd6 $2 {[%emt 0:00:49]} (32. Nc4 $1 $18 {[%cal Rc4d6]} dxc5 33. Ne5) 32... Bxc5 $14 {[%emt 0:02:08]} 33. bxc5 {[%emt 0:00:25]} Qxa5 {[%emt 0:00:14]} 34. Rd7 {[%emt 0:01:08]} (34. Qb4 $14 {feels stronger.} Qc7 35. Qe4) 34... Qe1 $2 {[%emt 0:13:37][%mdl 8192] Black is on the road to losing.} (34... Rxd7 $11 {and Black stays safe.} 35. Qxd7 Qe1 36. Qe6+ Qxe6 37. dxe6 Re8) 35. Rxf7 $18 {[%emt 0:00:05]} ({Worse is} 35. Qe6 Qxe6 36. dxe6 Rxd7 37. exd7 Rd8 $11) 35... Rxf7 {[%emt 0:00:03]} 36. Qe2 {[%emt 0:00:52] Against Qf1+} Qxe2+ {[%emt 0:02:26]} 37. Rxe2 {[%emt 0:00:01][%mdl 4096] Endgame KR-KR} Rf5 $2 {[%emt 0:00:01] [#]} (37... g5 38. d6 g4) 38. d6 $1 {[%emt 0:00:23]} Rd5 {[%emt 0:01:17]} 39. Re7 {[%emt 0:00:14]} Kf8 {[%emt 0:00:33]} 40. Rc7 $2 {[%emt 0:01:13]} (40. Rxb7 Rd2+ 41. Kh3) 40... h5 $2 {[%emt 0:02:19]} (40... Ke8 41. Kf3 (41. Rxb7 Rxc5 42. Re7+ Kd8 $11) 41... Rf5+ 42. Ke4 Rf7) 41. Kf3 {[%emt 0:00:13]} (41. Rxb7 $142 Rd2+ 42. Kf3) 41... Rd3+ {[%emt 0:03:01]} 42. Ke4 {[%emt 0:00:02]} Rd1 {[%emt 0:00:57]} 43. Rxb7 {[%emt 0:00:02]} Ke8 {[%emt 0:01:47]} 44. Rxg7 {[%emt 0:00:09] White mates.} Rd2 {[%emt 0:01:39]} 45. Ke5 {[%emt 0:00:25]} Rd1 {[%emt 0:00:16]} 46. Ke6 {[%emt 0:00:05][%cal Rg7g8]} Re1+ {[%emt 0:00:29]} 47. Kd5 {[%emt 0:00:02]} Rd1+ {[%emt 0:00:30]} 48. Kc6 {[%emt 0:00:01]} Rd2 {[%emt 0:00:51]} 49. d7+ {[%emt 0:00:01]} Kd8 {[%emt 0:00:08]} 50. Rg8+ {[%emt 0:04:51] Weighted Error Value: White=0.44/Black=0.71} 1-0

[Event "Asian Amateur-ch Open 2022"]
[Site "Muscat"]
[Date "2022.10.02"]
[Round "1.9"]
[White "Thapa, Krishna"]
[Black "Almuhaini, Abdulaziz"]
[Result "1-0"]
[ECO "E01"]
[WhiteElo "1928"]
[BlackElo "1392"]
[Annotator "TA"]
[PlyCount "61"]
[EventDate "2022.09.29"]
[EventType "swiss"]
[SourceTitle "playchess.com"]
[Source "ChessBase"]
[SourceQuality "1"]
[TimeControl "5400+30"]

{[%evp 15,61,18,18,18,62,12,298,297,300,295,309,321,572,558,626,619,612,589,597,561,628,631,620,616,675,636,673,546,779,777,731,680,1004,997,1010,993,980,972,963,951,1168,1136,2177,2120,6279,6187,5214,2398]} 1. d4 {[%emt 0:00:09]} d5 {[%emt 0:00:08]} 2. Nf3 {[%emt 0:00:04]} e6 {[%emt 0:00:27]} 3. g3 {[%emt 0:00:05]} Nf6 {[%emt 0:00:27]} 4. Bg2 {[%emt 0:00:07]} c5 {[%emt 0:01:13]} 5. O-O {[%emt 0:01:42]} cxd4 {[%emt 0:01:26]} 6. Nxd4 {[%emt 0:01:03]} Nc6 {[%emt 0:01:41]} 7. c4 {[%emt 0:01:46][%cal Bc2c4,Bc4d5][%mdl 32]} Bc5 {[%emt 0:05:13]} 8. Nxc6 {[%emt 0:01:17]} bxc6 {[%emt 0:00:26]} 9. Qc2 $1 {[%emt 0:02:59] [#] cxd5 is the strong threat. The main line 9.Qc2 scores better than 9.Nc3. E01: Catalan: Early deviations.} Qe7 {[%emt 0:03:05]} 10. Bg5 {[%emt 0:02:14] [#]} ({White should play} 10. cxd5 $1 $14 cxd5 11. e4) 10... Bb6 $146 {[%emt 0:05:50][%mdl 8192]} (10... Rb8 $11) ({Predecessor:} 10... O-O 11. e4 h6 12. Bxf6 Qxf6 13. exd5 Rb8 14. Nc3 cxd5 15. cxd5 Bd4 16. Rac1 Rd8 {½-½ (44) Chatalbashev,B (2529)-Praggnanandhaa,R (2642) Stavanger 2022}) 11. cxd5 $18 {[%emt 0:03:29] White has a decisive advantage.} O-O {[%emt 0:01:13]} 12. dxc6 {[%emt 0:00:40]} Ba6 {[%emt 0:03:45]} 13. Nc3 {[%emt 0:00:29]} Rac8 $2 {[%emt 0:06:38]} (13... Qc5 14. Be3 Qa5 15. Bxb6 Qxb6) 14. Qa4 {[%emt 0:00:18] White is clearly winning.} Bxe2 {[%emt 0:08:50]} 15. Nxe2 {[%emt 0:00:41]} h6 {[%emt 0:01:27]} 16. Bxf6 {[%emt 0:00:27]} Qxf6 {[%emt 0:00:16]} 17. Nc3 {[%emt 0:00:48][%cal Be2c3,Bc3a4,Ba4c5][%mdl 32]} Rfd8 {[%emt 0:00:38]} 18. Rad1 {[%emt 0:00:12]} Rxd1 {[%emt 0:02:26]} 19. Qxd1 {[%emt 0:00:26]} g6 {[%emt 0:02:00]} 20. Qf3 {[%emt 0:00:31]} Qe5 {[%emt 0:07:45]} 21. Qe2 {[%emt 0:04:45]} Qf5 {[%emt 0:05:26]} 22. Na4 {[%emt 0:02:24]} Bd4 {[%emt 0:12:00]} 23. Qd2 {[%emt 0:02:39][%csl LRd4,LRh6]} Bg7 {[%emt 0:00:36]} 24. Qd7 {[%emt 0:00:30]} e5 {[%emt 0:01:19]} 25. Bh3 {[%emt 0:00:49]} Qxd7 {[%emt 0:00:49]} 26. Bxd7 {[%emt 0:00:06]} Rc7 {[%emt 0:00:26]} 27. Nc5 {[%emt 0:00:01]} Kf8 {[%emt 0:04:46]} 28. Na6 {[%emt 0:00:09]} Rxd7 {[%emt 0:01:49]} 29. cxd7 {[%emt 0:00:02][%cal Rd7d8] [#]} Ke7 {[%emt 0:00:28]} 30. Rd1 {[%emt 1:14:38]} Kd8 {[%emt 0:00:47]} 31. Nb4 {[%emt 0:00:00] Black did not feel at home in the position after the opening.  Weighted Error Value: White=0.24 (precise) /Black=0.79} 1-0

[Event "Asian Amateur-ch Open 2022"]
[Site "Muscat"]
[Date "2022.10.02"]
[Round "1.10"]
[White "Al Rusheidi, Omer"]
[Black "Fooladi, Behrooz"]
[Result "0-1"]
[ECO "E60"]
[WhiteElo "1387"]
[BlackElo "1928"]
[Annotator "TA"]
[PlyCount "44"]
[EventDate "2022.09.29"]
[EventType "swiss"]
[SourceTitle "playchess.com"]
[Source "ChessBase"]
[SourceQuality "1"]
[TimeControl "5400+30"]

{[%evp 9,44,-2,27,0,4,1,2,-66,-55,-109,-106,-374,-375,-372,-390,-392,-362,-371,-359,-364,-331,-460,-444,-450,-448,-458,-450,-876,-870,-866,-831,-954,-929,-1050,-1044,-1600,-1527]} 1. d4 {[%emt 0:00:05]} Nf6 {[%emt 0:00:08]} 2. c4 {[%emt 0:00:05]} g6 {[%emt 0:00:11]} 3. b3 {[%emt 0:01:00]} Bg7 {[%emt 0:00:15]} 4. Bb2 {[%emt 0:00:30]} O-O {[%emt 0:00:16]} 5. Nf3 {[%emt 0:00:07]} Ne4 {[%emt 0:03:45]} 6. e3 {[%emt 0:00:29] E60: King's Indian: Unusual lines and Fianchetto Variation without Nc3.} c5 {[%emt 0:00:13]} 7. Bd3 {[%emt 0:01:08]} d5 {[%emt 0:00:14] [#]} 8. Qc2 $146 {[%emt 0:01:36]} ({White should try} 8. O-O $11) ({Predecessor:} 8. cxd5 Qxd5 9. Qc2 Bf5 10. Bc4 Qd7 11. Bd3 Qd5 12. Bc4 Qd7 13. Qe2 Nc6 14. d5 {1-0 (44) Nakamura,H (2736)-Avila Pavas,S (2373) Chess.com INT 2021}) 8... Nc6 $1 $15 {[%emt 0:02:05] Black is more active.} 9. cxd5 {[%emt 0:15:44]} (9. a3 $15 Bf5 10. O-O) 9... Nb4 $17 {[%emt 0:00:15]} 10. Qc4 {[%emt 0:00:42][%mdl 8192] [#]} (10. Qd1 $17 {is a better defense.} Nxd3+ 11. Qxd3 Qxd5 12. O-O) 10... b5 $1 $19 {[%emt 0:04:42]} ({Worse is} 10... Nxd3+ 11. Qxd3 Qxd5 12. O-O $17) 11. Qxb4 {[%emt 0:03:54]} ({Inferior is} 11. Qxb5 Nd6 12. Qxb4 cxb4 $19) 11... cxb4 {[%emt 0:00:19]} 12. Bxe4 {[%emt 0:00:33]} Bb7 {[%emt 0:01:11]} 13. O-O {[%emt 0:00:12]} Bxd5 {[%emt 0:00:10]} 14. Nbd2 {[%emt 0:01:18]} Rc8 {[%emt 0:00:28]} 15. Rac1 {[%emt 0:00:02]} Rxc1 {[%emt 0:02:39] Black is clearly winning.} 16. Rxc1 {[%emt 0:00:02]} Bxe4 {[%emt 0:00:17]} 17. Nxe4 {[%emt 0:00:05]} Qa5 {[%emt 0:00:09]} 18. Nc5 {[%emt 0:01:37]} (18. Ra1 $142) 18... Qxa2 {[%emt 0:00:28]} 19. Ba1 {[%emt 0:00:03]} Rc8 {[%emt 0:00:18] aiming for ...a5.} 20. g3 {[%emt 0:01:05]} a5 {[%emt 0:00:59][%cal Ba7a5,Ba5a4,Ba4b3][%mdl 32]} 21. Kf1 {[%emt 0:00:33]} a4 {[%emt 0:00:12]} 22. Ke1 {[%emt 1:10:40]} axb3 {[%emt 1:22:16] Black took control after the opening.  Weighted Error Value: White=1.27/Black=0.08 (flawless)} 0-1

[Event "Asian Amateur-ch Open 2022"]
[Site "Muscat"]
[Date "2022.10.02"]
[Round "1.11"]
[White "Zahmati, Sobhan"]
[Black "Darshan Rajmohan"]
[Result "1-0"]
[ECO "A11"]
[WhiteElo "1926"]
[BlackElo "1383"]
[Annotator "TA"]
[PlyCount "45"]
[EventDate "2022.09.29"]
[EventType "swiss"]
[SourceTitle "playchess.com"]
[Source "ChessBase"]
[SourceQuality "1"]
[TimeControl "5400+30"]

{[%evp 9,44,18,25,17,24,20,139,102,231,76,228,215,352,348,359,337,526,522,1324,1305,1564,1306,29987,29988,29992,29993,29993,29991,29991,29992,29992,29993,29997,29998,29998,29999,29999]} 1. Nf3 {[%emt 0:00:09]} d5 {[%emt 0:00:24]} 2. c4 {[%emt 0:00:07]} c6 {[%emt 0:00:10]} 3. g3 {[%emt 0:00:05]} Nf6 {[%emt 0:01:56]} 4. Bg2 {[%emt 0:00:15]} dxc4 {[%emt 0:04:57]} 5. O-O {[%emt 0:00:37]} b5 {[%emt 0:01:28]} 6. d3 {[%emt 0:01:37] A11: English Opening: 1...c6.} cxd3 {[%emt 1:24:35]} 7. Ne5 {[%emt 0:00:20]} dxe2 {[%emt 0:00:00]} (7... Qc7 $11 8. Nxd3 e5) 8. Qxe2 $16 {[%emt 0:02:24] [#] Hoping for Rd1. White is clearly better.} Bb7 {[%emt 0:00:00] [#]} (8... e6 $16) 9. a4 $146 {[%emt 0:04:22]} (9. Rd1 $18 {is more deadly.} Qc8 10. Nc3) ({Predecessor:} 9. Rd1 Qb6 10. Be3 Qa6 11. Nd2 e6 12. Nb3 Nd5 13. Bc5 Bxc5 14. Nxc5 Qb6 15. Rac1 {1-0 (63) Shuvalov,E (2182)-Krysa,L (2525) Chess.com INT 2022}) 9... a6 $2 {[%emt 0:00:00]} (9... b4 $16) 10. Rd1 $40 {[%emt 0:25:38][%mdl 128] White attacks with force.} Qc7 {[%emt 0:00:00]} (10... Qc8 $142 11. Nc3 e6) 11. Bf4 {[%emt 0:01:07]} Qc8 {[%emt 0:00:00]} 12. Nc3 {[%emt 0:05:21][%cal Bb1c3,Bc3b5,Bb5d6][%mdl 32]} g6 {[%emt 0:00:00]} (12... e6 $142 13. axb5 Be7) 13. axb5 {[%emt 0:05:28] aiming for Qc4.} cxb5 {[%emt 0:00:00] [#]} 14. Nxb5 $1 {[%emt 0:00:45][%mdl 512]} Bxg2 {[%emt 0:00:00]} (14... axb5 15. Qxb5+) 15. Rac1 {[%emt 0:01:23][%cal Rc1c8]} Bc6 {[%emt 0:00:00]} 16. Nxc6 {[%emt 0:00:19] White mates.} Nxc6 {[%emt 0:00:00]} 17. Nd6+ {[%emt 0:00:18]} Kd8 {[%emt 0:00:00]} 18. Nxf7+ {[%emt 0:00:07]} Ke8 {[%emt 0:00:00]} 19. Nd6+ {[%emt 0:00:01]} Kd8 {[%emt 0:00:00]} 20. Nxc8+ {[%emt 0:00:01]} Kxc8 {[%emt 0:00:00]} 21. Qe6+ {[%emt 0:00:11]} Kb7 {[%emt 0:00:00]} 22. Qxc6+ {[%emt 0:00:02]} Ka7 {[%emt 0:00:00]} 23. Qc7# {[%emt 0:00:03] Black did not feel at home in the position after the opening.  Weighted Error Value: White=0.17 (very precise) /Black=0.89} 1-0

[Event "Asian Amateur-ch Open 2022"]
[Site "Muscat"]
[Date "2022.10.02"]
[Round "1.12"]
[White "Al Balushi, Salim"]
[Black "Mahmoody, M. Sadegh"]
[Result "0-1"]
[ECO "A00"]
[WhiteElo "1374"]
[BlackElo "1914"]
[Annotator "TA"]
[PlyCount "60"]
[EventDate "2022.09.29"]
[EventType "swiss"]
[SourceTitle "playchess.com"]
[Source "ChessBase"]
[SourceQuality "1"]
[TimeControl "5400+30"]

{[%evp 9,60,-60,-60,-53,-44,-56,-52,-48,-52,-47,-51,-68,-39,-64,-66,-69,-63,-75,-26,-77,-77,-169,-171,-304,-302,-308,-252,-388,-386,-412,-409,-430,-449,-442,-439,-537,-506,-589,-526,-524,-472,-687,-600,-931,-812,-1533,-1581,-1932,-1908,-29987,-29988,-29979,-760]} 1. d3 {[%emt 0:00:09]} d5 {[%emt 0:00:07]} 2. c3 {[%emt 0:00:19]} Nf6 {[%emt 0:00:14]} 3. Qc2 {[%emt 0:00:46]} c5 {[%emt 0:00:12]} 4. e4 {[%emt 0:00:28]} Nc6 {[%emt 0:02:28]} 5. a4 {[%emt 0:00:22]} e5 {[%emt 0:01:26]} 6. Nf3 {[%emt 0:01:03] A00: Irregular Openings.} Be7 {[%emt 0:00:48]} 7. Be2 {[%emt 0:00:17]} O-O {[%emt 0:00:36]} 8. O-O {[%emt 0:00:51] Black is slightly better.} h6 {[%emt 0:00:42]} 9. Nbd2 {[%emt 0:02:28] [#]} Be6 $146 {[%emt 0:01:44]} ({Predecessor:} 9... Qc7 10. Re1 Re8 11. Nf1 Bf8 12. Bd2 Be6 13. b4 Rac8 14. b5 Ne7 15. exd5 Nexd5 {0-1 (36) Melo,S (1770)-Villalba,M (2265) Curitiba 2016}) 10. Re1 {[%emt 0:00:32]} Re8 {[%emt 0:02:19]} 11. Nf1 {[%emt 0:00:52]} d4 {[%emt 0:01:19]} 12. Ng3 {[%emt 0:02:43]} Bf8 {[%emt 0:02:05] Black is more active.} 13. Bd2 {[%emt 0:01:53]} Na5 {[%emt 0:02:38]} ({Better is} 13... b6 $17) 14. c4 {[%emt 0:10:16]} ({Reject} 14. Nxe5 Bb3 15. Qc1 Rxe5 $17) (14. cxd4 $11 exd4 15. Bxa5 Qxa5 16. Rf1) 14... Nd7 {[%emt 0:01:51] White is on the road to losing.} 15. Nh4 {[%emt 0:03:49]} Nxc4 $1 $19 {[%emt 0:00:25]} ({Stronger than} 15... Qxh4 16. Bxa5 Nb8 17. Bd2 $15 (17. Nf5 Qf6 $15)) 16. Nhf5 {[%emt 0:14:09]} (16. dxc4 {keeps fighting.} Qxh4 17. b3) 16... Nxd2 {[%emt 0:00:51]} 17. Qxd2 {[%emt 0:00:24]} Qg5 {[%emt 0:00:15]} 18. Qc2 {[%emt 0:03:48]} (18. Nf1 {was worth a try.}) 18... g6 {[%emt 0:00:31]} 19. h4 {[%emt 0:11:50]} Qd8 {[%emt 0:04:54]} 20. h5 {[%emt 0:04:33]} gxf5 {[%emt 0:00:47]} 21. exf5 {[%emt 0:04:01]} Bd5 {[%emt 0:00:19][%cal Oc5c4]} 22. Bd1 {[%emt 0:04:55]} Rc8 {[%emt 0:01:31]} 23. Re4 {[%emt 0:04:09]} Bxe4 {[%emt 0:00:35]} 24. Nxe4 {[%emt 0:03:26]} Nf6 {[%emt 0:00:20] Threatens to win with ...Nxe4.} 25. Ng3 {[%emt 0:00:31]} (25. Bf3 $142) 25... c4 {[%emt 0:04:44] [#] White must now prevent ...cxd3.} 26. dxc4 {[%emt 0:11:45]} e4 {[%emt 0:00:03][%cal Be5e4,Be4e3][%mdl 32]} 27. b3 {[%emt 0:03:05]} d3 {[%emt 0:00:21]} 28. Qd2 {[%emt 0:01:10]} Qd4 {[%emt 0:00:39] ( -> ...e3)} 29. Qa2 {[%emt 0:05:01]} e3 {[%emt 0:00:16]} 30. Nf1 {[%emt 0:05:55]} Qd7 {[%emt 1:10:30] Weighted Error Value: White=1.11/Black=0.25 (precise)} (30... e2 $142 31. Bxe2 Rxe2 32. Ne3 Rxa2 33. Rf1 Nxh5 34. c5 Bxc5 35. Re1 Qh4 36. g3 {[#]} Qxg3+ $3 {[%mdl 512]} 37. fxg3 Bxe3+ 38. Rxe3 Rc1+ 39. Re1 Rxe1#) 0-1

[Event "Asian Amateur-ch Open 2022"]
[Site "Muscat"]
[Date "2022.10.02"]
[Round "1.13"]
[White "Shahali, Milad"]
[Black "Alhassan, Meshari"]
[Result "1-0"]
[ECO "B00"]
[WhiteElo "1910"]
[BlackElo "1372"]
[Annotator "TA"]
[PlyCount "69"]
[EventDate "2022.09.29"]
[EventType "swiss"]
[SourceTitle "playchess.com"]
[Source "ChessBase"]
[SourceQuality "1"]
[TimeControl "5400+30"]

{[%evp 9,69,18,30,-16,23,-2,37,16,29,20,26,0,49,53,50,14,7,14,22,20,22,18,27,33,29,28,31,29,32,21,38,41,41,29,30,30,36,34,118,118,120,120,134,139,137,131,136,138,138,134,147,154,149,149,340,342,386,368,958,939,858,813]} 1. e4 {[%emt 0:00:09]} b6 {[%emt 0:00:29]} 2. Nc3 {[%emt 0:02:05]} Bb7 {[%emt 0:00:44]} 3. d4 {[%emt 0:00:27]} Nf6 {[%emt 0:00:31]} 4. e5 {[%emt 0:04:57]} Nd5 {[%emt 0:01:38]} 5. Nf3 {[%emt 0:00:23]} e6 {[%emt 0:01:31]} 6. Be2 {[%emt 0:00:14] B00: Queen's Fianchetto Defence, Nimzowitsch Defence.} (6. Ne4 $142) 6... c5 {[%emt 0:03:59] [#]} 7. O-O $146 {[%emt 0:05:27]} ({Predecessor:} 7. Nb5 d6 8. Bg5 f6 9. exf6 Nxf6 10. O-O a6 11. Nc3 Be7 12. Qd3 O-O 13. a4 {1-0 (42) Grossner,J (1656)-Pankow,W (1465) Germany 2012}) 7... cxd4 {[%emt 0:00:45]} 8. Nb5 {[%emt 0:04:54] White is slightly better.} Nc6 {[%emt 0:05:17]} 9. Nbxd4 {[%emt 0:01:32]} Bc5 {[%emt 0:03:53]} 10. Nb3 {[%emt 0:05:41]} Be7 {[%emt 0:02:39]} (10... Qc7 $11) 11. c4 $14 {[%emt 0:02:53]} Nc7 {[%emt 0:02:43]} 12. Bd2 {[%emt 0:30:27]} O-O {[%emt 0:08:27]} 13. Bf4 {[%emt 0:04:02]} f6 {[%emt 0:03:43]} 14. exf6 {[%emt 0:04:23]} Bxf6 {[%emt 0:02:36]} 15. Bd6 {[%emt 0:00:46]} Be7 {[%emt 0:02:51]} (15... Bxb2 16. Rb1 Bf6 17. Bxf8 Kxf8 18. Nc5 $1 $16 {[%mdl 512]}) 16. Qd2 {[%emt 0:01:11]} Bxd6 {[%emt 0:01:41]} 17. Qxd6 {[%emt 0:00:03]} Ne8 {[%emt 0:00:02]} 18. Qd2 {[%emt 0:01:23]} Nf6 {[%emt 0:01:21]} 19. Rad1 {[%emt 0:03:28]} Qe7 {[%emt 0:10:49]} 20. Nbd4 {[%emt 0:06:10]} Rad8 {[%emt 0:04:49]} 21. Nxc6 {[%emt 0:01:02]} dxc6 {[%emt 0:05:46]} 22. Qe3 {[%emt 0:06:20]} c5 {[%emt 0:01:41]} 23. Ne5 {[%emt 0:00:24]} Nd7 {[%emt 0:05:15]} (23... Ne4 $14) 24. Nxd7 $16 {[%emt 0:03:30]} Rxd7 {[%emt 0:01:52] [#]} 25. Bg4 $1 {[%emt 0:03:04]} Rf6 {[%emt 0:01:38]} 26. Rxd7 {[%emt 0:00:54]} Qxd7 {[%emt 0:00:28]} 27. Rd1 {[%emt 0:00:12]} Qe7 {[%emt 0:00:44]} 28. Qe5 {[%emt 0:02:29]} Bc6 {[%emt 0:12:44]} 29. f4 {[%emt 0:02:22][%cal Bf2f4,Bf4f5,Bf5e6][%mdl 32]} h6 {[%emt 0:04:19]} 30. f5 {[%emt 0:01:07]} Bd7 {[%emt 0:00:25]} 31. Bh3 {[%emt 0:01:12] Qc7 is the strong threat. White has more active pieces.} Kf7 $2 {[%emt 0:01:30] A mistake that costs the game.} (31... Qf7 $16 {was necessary.}) 32. Qc7 $18 {[%emt 0:00:45][%csl LRa7,LRd7]} Ke8 {[%emt 0:04:05]} 33. Qb8+ {[%emt 0:00:36]} (33. fxe6 Bxe6 34. Qc6+ (34. Qb8+ Kf7 $11) 34... Kf7 $18) 33... Qd8 $2 {[%emt 0:02:06] [#]} (33... Kf7 34. Qxa7 Ke8 35. Qa8+ (35. Qxb6 exf5 36. Qb8+ Kf7 $16) (35. fxe6 Bxe6 36. Qxe7+ Kxe7 $18) 35... Kf7) 34. Qxd8+ $1 {[%emt 0:00:14]} Kxd8 {[%emt 0:00:41]} 35. fxe6 {[%emt 0:00:06] Weighted Error Value: White=0.06 (flawless) /Black=0.26 (precise)} 1-0